fUSD/lending_fUSD_20250823
["ID","MTS","AMOUNT","RATE_DAILY","PERIOD"]
[381003663,1755935437643,-85.04977092,0.00011506,2]
[381003664,1755935437654,-150.0,0.00011513,2]
[381003665,1755935437664,-150.0,0.0001152,2]
[381003666,1755935437677,-862.46044217,0.00011527,2]
[381003667,1755935437687,-150.0,0.00011529,2]
[381003668,1755935437696,-150.0,0.00011533,2]
[381003669,1755935437707,-150.0,0.0001155,2]
[381003670,1755935437716,-150.0,0.0001155,2]
[381003671,1755935437726,-150.0,0.00011553,2]
[381003672,1755935437736,-150.0,0.00011564,2]
[381003673,1755935437747,-150.0,0.00011576,2]
[381003674,1755935437756,-150.0,0.00011576,2]
[381003675,1755935437766,-150.0,0.0001158,2]
[381003676,1755935437775,-203.0,0.00011586,2]
[381003677,1755935437785,-300.0,0.00011586,2]
[381003678,1755935437794,-310.0,0.00011586,2]
[381003680,1755935437804,-250.0,0.00011586,2]
[381003682,1755935437813,-2500.0,0.00011586,2]
[381003683,1755935437823,-300.0,0.00011586,2]
[381003684,1755935437833,-2500.0,0.00011586,2]
[381003685,1755935437843,-150.0,0.00011588,2]
[381003686,1755935437852,-150.0,0.000116,2]
[381003687,1755935437862,-150.0,0.000116,2]
[381003688,1755935437871,-150.0,0.000116,2]
[381003689,1755935437882,-1600.0,0.000116,4]
[381003690,1755935437891,-150.0,0.00011624,2]
[381003691,1755935437900,-150.0,0.00011625,2]
[381003692,1755935437911,-150.0,0.00011625,2]
[381003693,1755935437920,-150.0,0.0001164,2]
[381003694,1755935437930,-500.0,0.00011645,2]
[381003695,1755935437940,-151.0,0.00011645,2]
[381003696,1755935437950,-151.0,0.00011645,2]
[381003697,1755935437959,-151.0,0.00011645,2]
[381003698,1755935437969,-500.0,0.00011645,2]
[381003700,1755935437978,-151.0,0.00011645,2]
[381003701,1755935437987,-150.0,0.00011647,2]
[381003702,1755935437997,-150.0,0.00011647,2]
[381003703,1755935438007,-150.0,0.00011663,2]
[381003704,1755935438016,-150.0,0.00011667,2]
[381003705,1755935438026,-150.0,0.00011671,2]
[381003706,1755935438035,-150.0,0.00011673,2]
[381003707,1755935438045,-150.0,0.00011694,2]
[381003708,1755935438055,-150.0,0.000117,2]
[381003709,1755935438062,-150.0,0.000117,2]
[381003710,1755935438071,-150.0,0.000117,2]
[381003711,1755935438081,-2000.0,0.000117,4]
[381003712,1755935438090,-500.0,0.000117,2]
[381003713,1755935438099,-150.0,0.00011718,2]
[381003714,1755935438109,-150.0,0.00011718,2]
[381003715,1755935438118,-150.0,0.00011733,2]
[381003716,1755935438128,-150.0,0.00011738,2]
[381003717,1755935438139,-150.0,0.00011741,2]
[381003718,1755935438149,-160.0,0.00011745,2]
[381003719,1755935438159,-721.12765535,0.00011745,2]
[381003720,1755935438168,-151.0,0.00011745,2]
[381003721,1755935438178,-5391.81600769,0.00011745,2]
[381003722,1755935438188,-277.35679052,0.00011745,2]
[381003723,1755935438198,-151.0,0.00011745,2]
[381003724,1755935438207,-322.6107,0.00011745,2]
[381003725,1755935438217,-150.0,0.00011755,2]
[381003726,1755935438227,-181.6342883,0.00011755,2]
[381003727,1755935438236,-500.0,0.00011755,2]
[381003728,1755935438246,-1981.0,0.00011755,2]
[381003729,1755935438255,-500.0,0.00011755,2]
[381003730,1755935438264,-150.0,0.00011755,2]
[381003731,1755935438274,-500.0,0.00011755,2]
[381003732,1755935438283,-1237.0,0.00011755,2]
[381003733,1755935438292,-500.0,0.00011755,2]
[381003734,1755935438302,-150.0,0.00011755,2]
[381003735,1755935438312,-500.0,0.00011755,2]
[381003736,1755935438322,-500.0,0.00011755,2]
[381003737,1755935438331,-150.0,0.00011755,2]
[381003738,1755935438341,-500.0,0.00011755,2]
[381003739,1755935438351,-150.0,0.00011755,2]
[381003740,1755935438360,-789.0,0.00011755,2]
[381003741,1755935438369,-500.0,0.00011755,2]
[381003742,1755935438379,-500.0,0.00011755,2]
[381003743,1755935438389,-150.0,0.0001176,2]
[381003744,1755935438398,-150.0,0.00011765,2]
[381003745,1755935438408,-8964.03187661,0.00011771,2]
[381003746,1755935438418,-5000.0,0.00011771,2]
[381003747,1755935438427,-5000.0,0.00011771,2]
[381003748,1755935438437,-150.0,0.00011775,2]
[381003749,1755935438446,-150.0,0.00011775,2]
[381003750,1755935438455,-150.0,0.00011782,2]
[381003751,1755935438465,-150.0,0.00011788,2]
[381003752,1755935438474,-150.0,0.00011788,2]
[381003753,1755935438483,-5182.73614534,0.000118,2]
[381003754,1755935438492,-338.2582,0.000118,2]
[381003755,1755935438502,-150.0,0.000118,2]
[381003756,1755935438511,-400.0,0.000118,4]
[381003757,1755935438521,-150.0,0.000118,2]
[381003758,1755935438530,-177.40828349,0.00011806,2]
[381003759,1755935438540,-500.0,0.0001181,2]
[381003760,1755935438549,-150.0,0.00011812,2]
[381003761,1755935438558,-150.0,0.00011813,2]
[381003762,1755935438567,-150.0,0.0001182,2]
[381003763,1755935438577,-150.0,0.00011835,2]
[381003764,1755935438586,-150.0,0.0001185,2]
[381003765,1755935438595,-150.0,0.0001185,2]
[381003766,1755935438605,-150.0,0.00011859,2]
[381003767,1755935438614,-150.0,0.00011859,2]
[381003768,1755935438623,-500.0,0.00011865,2]
[381003769,1755935438633,-150.0,0.00011867,2]
[381003770,1755935438642,-1680.0,0.00011879,2]
[381003771,1755935438652,-150.0,0.0001188,2]
[381003772,1755935438663,-986.79543,0.0001188,2]
[381003773,1755935438676,-986.79543,0.0001188,2]
[381003774,1755935438686,-986.79542,0.0001188,2]
[381003775,1755935438695,-986.79542,0.0001188,2]
[381003776,1755935438705,-986.79543,0.0001188,2]
[381003777,1755935438715,-986.79543,0.0001188,2]
[381003778,1755935438724,-150.0,0.00011882,2]
[381003779,1755935438734,-150.0,0.00011888,2]
[381003780,1755935438746,-213.76846305,0.0001189,2]
[381003781,1755935438755,-150.0,0.0001189,2]
[381003782,1755935438765,-150.0,0.00011891,2]
[381003783,1755935438774,-790.40081107,0.00011899,2]
[381003784,1755935438783,-163.57725539,0.000119,2]
[381003785,1755935438792,-159.11211817,0.000119,2]
[381003786,1755935438802,-400.0,0.000119,4]
[381003787,1755935438811,-190.77359804,0.000119,2]
[381003788,1755935438820,-181667.4769722,0.000119,2]
[381003789,1755935438829,-150.0,0.00011906,2]
[381003790,1755935438838,-166.66,0.0001191,2]
[381003791,1755935438847,-500.0,0.0001192,2]
[381003792,1755935438856,-150.0,0.00011925,2]
[381003793,1755935438866,-150.0,0.00011925,2]
[381003794,1755935438876,-150.0,0.00011929,2]
[381003795,1755935438885,-150.0,0.00011929,2]
[381003796,1755935438898,-150.0,0.00011933,2]
[381003797,1755935438907,-150.0,0.0001194,2]
[381003798,1755935438917,-150.0,0.00011953,2]
[381003799,1755935438926,-150.0,0.00011963,2]
[381003800,1755935438935,-500.0,0.00011973,2]
[381003801,1755935438945,-500.0,0.00011973,2]
[381003802,1755935438954,-500.0,0.00011973,2]
[381003803,1755935438965,-500.0,0.00011975,2]
[381003804,1755935438973,-150.0,0.00011976,2]
[381003805,1755935438982,-265.01450431,0.00011993,2]
[381003806,1755935438991,-150.0,0.00011993,2]
[381003807,1755935439001,-150.0,0.00011993,2]
[381003808,1755935439010,-150.0,0.00011993,2]
[381003809,1755935439020,-150.0,0.00011993,2]
[381003810,1755935439029,-150.0,0.00011993,2]
[381003811,1755935439038,-202.17100839,0.00011993,2]
[381003812,1755935439048,-150.0,0.00011993,2]
[381003813,1755935439058,-222.728912,0.00011997,2]
[381003814,1755935439068,-1000.0,0.00011999,2]
[381003815,1755935439077,-1000.0,0.00011999,2]
[381003816,1755935439086,-794.73364703,0.00012,2]
[381003817,1755935439096,-290469.69913255,0.00012,2]
[381003818,1755935439105,-4213509.52453199,0.00012,2]
[381003821,1755935440200,-1190.6,0.00012,2]
[381003822,1755935440222,-581.454166,0.00012,2]
[381003823,1755935440296,-900.44860161,0.00012,2]
[381003824,1755935440310,-375.11531255,0.00012,2]
[381003825,1755935441484,-21209.1022769,0.00011394,2]
[381003826,1755935441503,-4732.3903876,0.0001172,2]
[381003827,1755935441514,-862.84273847,0.00011774,2]
[381003828,1755935441524,-1055.939025,0.00011793,2]
[381003829,1755935441534,-277933.96408126,0.00012,2]
[381003830,1755935441544,-5542.94448981,0.00012,2]
[381003831,1755935441753,-0.0110151,0.00012,2]
[381003832,1755935441790,-795.92622304,0.00012,2]
[381003833,1755935441827,-9279.2,0.00012,2]
[381003834,1755935441840,-233733.428053,0.00012,2]
[381003835,1755935441852,-23103.56384,0.00012,2]
[381003836,1755935441864,-10340.20085,0.00012,2]
[381003867,1755935443497,-552.54999384,0.000119,2]
[381003868,1755935443507,-16146.67145419,0.00012,2]
[381003871,1755935445820,-1161.75951,0.00012,2]
[381003872,1755935445838,-5482.89560723,0.00012,2]
[381003875,1755935767342,198.0,0.00015,7]
[381003876,1755935835324,151.0,0.00028767,120]
[381003877,1755935846570,151.0,0.00028767,120]
[381003880,1755936128494,405.992319,7.945e-05,2]
[381003882,1755936325812,244.0,9.8e-05,2]
[381003885,1755936483081,208.4671722,9.996e-05,2]
[381003893,1755936616148,174.17754056,0.00020795,30]
[381003901,1755936631995,-151.0,0.00010523,2]
[381003902,1755936632010,-525.69433768,0.00010523,2]
[381003903,1755936632020,-396.52132724,0.00010529,2]
[381003904,1755936632030,-300.0,0.00010532,2]
[381003905,1755936632039,-344.28433505,0.00010539,2]
[381003906,1755936632053,-308.63148115,0.00010539,2]
[381003907,1755936632065,-969.5341838,0.00010539,2]
[381003908,1755936632076,-250.0,0.00010541,2]
[381003909,1755936632085,-300.0,0.00010542,2]
[381003910,1755936632095,-198.80761892,0.00010547,2]
[381003911,1755936632107,-1.19238108,0.00010547,2]
[381003912,1755936632117,-585.09,0.00010562,2]
[381003913,1755936632127,-1000.0,0.00010569,2]
[381003914,1755936632137,-2500.0,0.00010633,2]
[381003915,1755936632147,-730.29937744,0.0001074,2]
[381003916,1755936632159,-500.0,0.0001074,2]
[381003917,1755936632171,-369.70062256,0.0001074,2]
[381003918,1755936632182,-405.46,0.00010765,2]
[381003919,1755936632192,-390.96,0.00010792,2]
[381003920,1755936632202,-199.33,0.00010825,2]
[381003921,1755936632212,-162.97,0.00010967,2]
[381003922,1755936632221,-239.0,0.0001098,2]
[381003923,1755936632231,-1200.0,0.00010992,2]
[381003924,1755936632241,-153.707175,0.00010993,2]
[381003925,1755936632250,-500.0,0.00010993,2]
[381003926,1755936632260,-300.41392418,0.00010993,2]
[381003927,1755936632270,-500.0,0.00010993,2]
[381003928,1755936632280,-1000.0,0.00010999,2]
[381003929,1755936632290,-1003.28795244,0.00010999,2]
[381003930,1755936632300,-150.0,0.00010999,2]
[381003931,1755936632310,-51000.0,0.00011,2]
[381003932,1755936632320,-1250.68319161,0.00011,2]
[381003933,1755936632330,-5000.0,0.00011,2]
[381003934,1755936632340,-500.0,0.00011048,2]
[381003935,1755936632351,-152.0,0.00011049,2]
[381003936,1755936632361,-500.0,0.00011103,2]
[381003938,1755936632371,-500.0,0.00011158,2]
[381003939,1755936632381,-500.0,0.00011213,2]
[381003941,1755936632391,-500.0,0.00011268,2]
[381003943,1755936632401,-500.0,0.00011323,2]
[381003946,1755936632412,-165.61,0.0001139,2]
[381003949,1755936632421,-153.0,0.00011575,2]
[381003952,1755936632431,-2500.0,0.00011575,2]
[381003954,1755936632441,-300.0,0.00011575,2]
[381003956,1755936632451,-250.0,0.00011575,2]
[381003958,1755936632461,-2500.0,0.00011575,2]
[381003960,1755936632471,-300.0,0.00011575,2]
[381003962,1755936632481,-2500.0,0.00011575,2]
[381003965,1755936632491,-469.06,0.00011644,2]
[381003966,1755936632501,-322.6107,0.00011695,2]
[381003967,1755936632511,-160.0,0.00011695,2]
[381003969,1755936632520,-721.12765535,0.00011695,2]
[381003971,1755936632530,-277.35679052,0.00011695,2]
[381003973,1755936632540,-151.0,0.00011695,2]
[381003976,1755936632551,-333.89,0.000117,2]
[381003978,1755936632565,-251.91,0.00011702,2]
[381003980,1755936632574,-172.99515904,0.00011702,2]
[381003982,1755936632584,-880.81066434,0.00011703,2]
[381003984,1755936632594,-1173.0,0.00011715,2]
[381003986,1755936632605,-894.0,0.00011715,2]
[381004008,1755936632947,-4153.0,0.00011735,2]
[381004009,1755936632961,-6093.0,0.00011735,2]
[381004010,1755936632971,-718.0,0.00011735,2]
[381004011,1755936632982,-1659.36233317,0.0001176,2]
[381004012,1755936632994,-1000.0,0.00011781,2]
[381004014,1755936633010,-1000.0,0.00011781,2]
[381004016,1755936633020,-1000.0,0.00011781,2]
[381004017,1755936633030,-1000.0,0.00011781,2]
[381004019,1755936633042,-1000.0,0.00011781,2]
[381004022,1755936633053,-1000.0,0.00011781,2]
[381004024,1755936633064,-1000.0,0.00011781,2]
[381004026,1755936633074,-1000.0,0.00011781,2]
[381004028,1755936633087,-179.0,0.00011781,2]
[381004030,1755936633097,-6950.313,0.000118,2]
[381004032,1755936633108,-1000.0,0.000118,2]
[381004033,1755936633118,-34576.6724,0.000118,2]
[381004034,1755936633128,-4043.0545,0.000118,2]
[381004035,1755936633138,-4805.09563849,0.00011802,2]
[381004041,1755936633212,-1139.681725,0.00011802,2]
[381004042,1755936633251,-14344.06106673,0.00011802,2]
[381004043,1755936633261,-1000.0,0.00011802,2]
[381004044,1755936633271,-1000.0,0.00011802,2]
[381004045,1755936633281,-1000.0,0.00011802,2]
[381004046,1755936633291,-1000.0,0.00011802,2]
[381004047,1755936633301,-1000.0,0.00011802,2]
[381004048,1755936633311,-1000.0,0.00011802,2]
[381004049,1755936633320,-1000.0,0.00011802,2]
[381004050,1755936633330,-550.19214267,0.00011873,2]
[381004051,1755936633339,-1000.0,0.0001188,2]
[381004052,1755936633349,-1000.0,0.0001188,2]
[381004053,1755936633360,-1000.0,0.0001188,2]
[381004054,1755936633371,-150.0,0.0001189,2]
[381004055,1755936633381,-500.0,0.0001189,2]
[381004056,1755936633391,-500.0,0.0001189,2]
[381004057,1755936633401,-390.34657475,0.0001189,2]
[381004058,1755936633415,-109.65342525,0.0001189,2]
[381004059,1755936633425,-500.0,0.0001189,2]
[381004060,1755936633435,-187.69267742,0.0001189,2]
[381004061,1755936633446,-500.0,0.0001189,2]
[381004062,1755936633456,-500.0,0.0001189,2]
[381004063,1755936633466,-150.0,0.0001189,2]
[381004064,1755936633476,-500.0,0.0001189,2]
[381004065,1755936633487,-150.0,0.0001189,2]
[381004066,1755936633497,-756.0,0.0001189,2]
[381004067,1755936633507,-756.0,0.0001189,2]
[381004068,1755936633518,-500.0,0.0001189,2]
[381004069,1755936633528,-643.14446035,0.0001189,2]
[381004070,1755936633543,-356.85553965,0.0001189,2]
[381004071,1755936633553,-271.56446035,0.00011897,2]
[381004072,1755936633564,-728.43553965,0.00011897,2]
[381004073,1755936633574,-26.98934639,0.000119,2]
[381004074,1755936633586,-239.04838761,0.000119,2]
[381004075,1755936633596,-502.73341239,0.000119,2]
[381004076,1755936633692,-1997.26658761,0.000119,2]
[381004077,1755936633703,-497.29499451,0.000119,2]
[381004078,1755936633713,-1847.32387499,0.000119,2]
[381004079,1755936633725,-3152.67612501,0.000119,2]
[381004080,1755936633734,-500.0,0.00011973,2]
[381004081,1755936633744,-500.0,0.00011973,2]
[381004082,1755936633754,-500.0,0.00011973,2]
[381004083,1755936633764,-1251.66379654,0.00011977,2]
[381004084,1755936633774,-1251.66379654,0.00011977,2]
[381004085,1755936633784,-63.04235774,0.00011988,2]
[381004086,1755936633795,-325.11200482,0.00011988,2]
[381004087,1755936633808,-111.84563744,0.00011988,2]
[381004088,1755936633817,-629.70415271,0.00011989,2]
[381004089,1755936633830,-1401.37369004,0.00011989,2]
[381004090,1755936633843,-950.26546194,0.00011989,2]
[381004099,1755936638526,-331.87565395,0.00010791,2]
[381004100,1755936638536,-197.92615325,0.00010791,2]
[381004101,1755936638546,-106.76341955,0.00011735,2]
[381004102,1755936638558,-584.66608733,0.00011735,2]
[381004103,1755936638629,-1107.3587817,0.00011735,2]
[381004104,1755936638641,-959.8615566,0.00011735,2]
[381004105,1755936638802,-18751.35015482,0.00011735,2]
[381004106,1755936638812,-1729.33542161,0.00011989,2]
[381004107,1755936638822,-1538.4528796,0.00011989,2]
[381004108,1755936638832,-1000.0,0.00011993,2]
[381004109,1755936638841,-1000.0,0.00011993,2]
[381004110,1755936638851,-1000.0,0.00011993,2]
[381004111,1755936638861,-1000.0,0.00011993,2]
[381004112,1755936638871,-1000.0,0.00011993,2]
[381004113,1755936638880,-1000.0,0.00011993,2]
[381004114,1755936638890,-1000.0,0.00011993,2]
[381004115,1755936638901,-1000.0,0.00011993,2]
[381004116,1755936638912,-1000.0,0.00011993,2]
[381004117,1755936638921,-1000.0,0.00011993,2]
[381004118,1755936638931,-599.0,0.00011993,2]
[381004119,1755936638941,-1899.0,0.00011993,2]
[381004120,1755936638953,-1186.0,0.00011993,2]
[381004121,1755936638963,-500.0,0.00011993,2]
[381004122,1755936638972,-150.0,0.00011993,2]
[381004123,1755936638983,-222.7289121,0.00011997,2]
[381004124,1755936638994,-3617.4103495,0.00011997,2]
[381004125,1755936639007,-1000.0,0.00011999,2]
[381004126,1755936639016,-1542.21,0.00011999,2]
[381004127,1755936639026,-1542.21,0.00011999,2]
[381004128,1755936639035,-1542.21,0.00011999,2]
[381004129,1755936639046,-1542.21,0.00011999,2]
[381004130,1755936639056,-1542.21,0.00011999,2]
[381004131,1755936639066,-1542.21,0.00011999,2]
[381004132,1755936639077,-1542.21,0.00011999,2]
[381004133,1755936639087,-1542.21,0.00011999,2]
[381004134,1755936639098,-1542.21,0.00011999,2]
[381004135,1755936639108,-1542.21,0.00011999,2]
[381004136,1755936639117,-1542.21,0.00011999,2]
[381004137,1755936639127,-1542.21,0.00011999,2]
[381004138,1755936639136,-1542.21,0.00011999,2]
[381004139,1755936639146,-1542.21,0.00011999,2]
[381004140,1755936639156,-1542.21,0.00011999,2]
[381004141,1755936639166,-1542.21,0.00011999,2]
[381004142,1755936639175,-1542.21,0.00011999,2]
[381004143,1755936639185,-1542.21,0.00011999,2]
[381004144,1755936639196,-1542.21,0.00011999,2]
[381004145,1755936639206,-1542.21,0.00011999,2]
[381004146,1755936639215,-1542.21,0.00011999,2]
[381004147,1755936639225,-1542.21,0.00011999,2]
[381004148,1755936639235,-1542.21,0.00011999,2]
[381004149,1755936639245,-1542.43783378,0.00011999,2]
[381004150,1755936639255,-1296.0,0.00012,2]
[381004151,1755936639264,-4362015.82006208,0.00012,2]
[381004152,1755936639274,-4088.8757525,0.00012,2]
[381004153,1755936639283,-66923.29037028,0.00012,2]
[381004154,1755936639296,-5664.0,0.00012,2]
[381004155,1755936639307,-4025.60038349,0.00012,2]
[381004156,1755936639319,-18739.35724233,0.00012,2]
[381004157,1755936639335,-1749.40485484,0.00012,2]
[381004158,1755936639377,-1766.06598468,0.00012,2]
[381004159,1755936639397,-1807.78423489,0.00012,2]
[381004164,1755936640265,-2301.2,0.00012,2]
[381004166,1755936640276,-531.0895095,0.00012,2]
[381004168,1755936640288,-578.44075066,0.00012,2]
[381004170,1755936640300,-8702.652374,0.00012,2]
[381004172,1755936640312,-35738.94429533,0.00012,2]
[381004174,1755936640322,-8480.45,0.00012,2]
[381004176,1755936640331,-7000.0,0.00012,2]
[381004178,1755936640341,-151.0,0.00012,2]
[381004181,1755936640351,-151.58631749,0.00012,2]
[381004183,1755936640361,-20.49910448,0.00012,2]
[381004216,1755936642923,-2500.0,0.00010625,2]
[381004217,1755936642933,-194.05089552,0.00012,2]
[381004218,1755936642943,-211.28,0.00012,2]
[381004219,1755936642954,-304.21,0.00012,2]
[381004220,1755936642964,-214.42,0.00012,2]
[381004221,1755936642974,-214.31,0.00012,2]
[381004222,1755936642984,-374.27486225,0.00012,2]
[381004223,1755936643022,-625.72513775,0.00012,2]
[381004224,1755936643032,-1000.0,0.00012,2]
[381004225,1755936643043,-1000.0,0.00012,2]
[381004226,1755936643052,-1000.0,0.00012,2]
[381004227,1755936643062,-1000.0,0.00012,2]
[381004228,1755936643072,-1000.0,0.00012,2]
[381004229,1755936643083,-200.0,0.00012,2]
[381004230,1755936643093,-265.01450431,0.00012,2]
[381004231,1755936643103,-150.0,0.00012,2]
[381004232,1755936643111,-150.0,0.00012,2]
[381004233,1755936643121,-150.0,0.00012,2]
[381004234,1755936643131,-150.0,0.00012,2]
[381004235,1755936643140,-150.0,0.00012,2]
[381004236,1755936643151,-150.0,0.00012,2]
[381004237,1755936643160,-150.0,0.00012,2]
[381004238,1755936643171,-150.0,0.00012,2]
[381004239,1755936643180,-151.0,0.00012,2]
[381004240,1755936643190,-167.78116798,0.00012,2]
[381004241,1755936643199,-5000.0,0.00012,2]
[381004242,1755936643210,-2451.66421,0.00012,2]
[381004243,1755936643220,-255.0,0.00012044,2]
[381004244,1755936643230,-469.06,0.00012055,2]
[381004245,1755936643240,-469.06,0.00012055,2]
[381004246,1755936643250,-1600.0,0.00012082,2]
[381004247,1755936643260,-150.99,0.00012087,2]
[381004248,1755936643270,-1680.0,0.00012092,2]
[381004249,1755936643279,-250.0,0.00012105,2]
[381004250,1755936643290,-252.0,0.00012105,2]
[381004251,1755936643300,-204.0,0.00012105,2]
[381004252,1755936643310,-150.102,0.00012105,2]
[381004253,1755936643320,-253.33,0.00012105,2]
[381004254,1755936643330,-250.0,0.00012105,2]
[381004255,1755936643340,-203.482,0.00012105,2]
[381004256,1755936643350,-296.593,0.00012105,2]
[381004257,1755936643360,-250.0,0.00012105,2]
[381004258,1755936643370,-150.029,0.00012105,2]
[381004259,1755936643380,-150.0,0.00012105,2]
[381004260,1755936643390,-150.0,0.00012105,2]
[381004261,1755936643400,-150.088,0.00012105,2]
[381004262,1755936643411,-157.465,0.00012105,2]
[381004263,1755936643423,-3439.974,0.00012105,2]
[381004264,1755936643433,-2030.0,0.00012105,2]
[381004265,1755936643443,-1255.0,0.00012105,2]
[381004266,1755936643453,-925.0,0.00012105,2]
[381004267,1755936643463,-1657.0,0.00012105,2]
[381004268,1755936643473,-578.22,0.00012105,2]
[381004269,1755936643482,-604.452,0.00012105,2]
[381004270,1755936643491,-1298.0,0.00012105,2]
[381004271,1755936643501,-200.0,0.0001212,2]
[381004272,1755936643511,-150.0,0.00012164,2]
[381004273,1755936643520,-500.0,0.00012164,2]
[381004274,1755936643530,-620.69183442,0.00012164,2]
[381004275,1755936643540,-500.0,0.00012164,2]
[381004276,1755936643551,-500.0,0.00012164,2]
[381004277,1755936643560,-500.0,0.00012164,2]
[381004278,1755936643570,-500.0,0.00012164,2]
[381004279,1755936643580,-500.0,0.00012164,2]
[381004280,1755936643590,-756.0,0.00012164,2]
[381004281,1755936643600,-756.0,0.00012164,2]
[381004282,1755936643609,-500.0,0.00012164,2]
[381004283,1755936643619,-500.0,0.00012164,2]
[381004284,1755936643629,-234.0,0.0001217,2]
[381004285,1755936643639,-799.21,0.00012196,2]
[381004286,1755936643649,-200.0,0.00012241,2]
[381004287,1755936643658,-151.0,0.00012243,2]
[381004288,1755936643668,-599.0,0.00012267,2]
[381004289,1755936643679,-1899.0,0.00012267,2]
[381004290,1755936643688,-1186.0,0.00012267,2]
[381004291,1755936643698,-500.0,0.00012267,2]
[381004292,1755936643707,-150.0,0.00012267,2]
[381004293,1755936643717,-172.99515901,0.00012268,2]
[381004294,1755936643727,-200.0,0.00012274,2]
[381004295,1755936643737,-252.36976824,0.00012274,2]
[381004296,1755936643747,-150.0,0.00012274,2]
[381004297,1755936643757,-234.12486695,0.00012274,2]
[381004298,1755936643767,-150.0,0.00012274,2]
[381004299,1755936643778,-202.17100839,0.00012274,2]
[381004300,1755936643787,-150.0,0.00012304,2]
[381004301,1755936643797,-150.0,0.00012304,2]
[381004302,1755936643808,-150.0,0.00012304,2]
[381004303,1755936643818,-150.0,0.00012304,2]
[381004304,1755936643827,-150.0,0.00012304,2]
[381004305,1755936643837,-150.0,0.00012304,2]
[381004306,1755936643847,-150.0,0.00012304,2]
[381004307,1755936643857,-150.0,0.00012304,2]
[381004308,1755936643867,-150.0,0.00012304,2]
[381004309,1755936643877,-150.0,0.00012304,2]
[381004310,1755936643887,-150.0,0.00012304,2]
[381004311,1755936643896,-150.0,0.00012304,2]
[381004312,1755936643906,-150.0,0.00012304,2]
[381004313,1755936643915,-150.0,0.00012304,2]
[381004314,1755936643926,-2451.66421,0.0001232,2]
[381004315,1755936643936,-150.0,0.00012329,2]
[381004316,1755936643945,-346.49,0.00012329,2]
[381004317,1755936643955,-408.48,0.00012329,2]
[381004318,1755936643965,-166.04,0.00012329,2]
[381004319,1755936643975,-165.61,0.0001233,2]
[381004320,1755936643985,-150.0,0.00012343,2]
[381004321,1755936643995,-200.0,0.00012364,2]
[381004322,1755936644012,-150.0,0.0001238,2]
[381004323,1755936644022,-200.0,0.00012393,2]
[381004324,1755936644032,-150.0,0.00012402,2]
[381004325,1755936644043,-500.0,0.00012411,2]
[381004326,1755936644052,-150.0,0.00012428,2]
[381004327,1755936644062,-150.0,0.00012438,2]
[381004328,1755936644073,-500.0,0.00012438,2]
[381004329,1755936644084,-500.0,0.00012438,2]
[381004330,1755936644095,-500.0,0.00012438,2]
[381004331,1755936644105,-500.0,0.00012438,2]
[381004332,1755936644115,-257.06985511,0.00012438,2]
[381004333,1755936644124,-450.0,0.00012438,2]
[381004334,1755936644134,-756.0,0.00012438,2]
[381004335,1755936644144,-756.0,0.00012438,2]
[381004336,1755936644154,-500.0,0.00012438,2]